Cogmind - Beta 17.1 @@@ ROGUE MODE // 2026.09.08 @ 21:21:23 Player: TheSkyeDoctor Result: Destroyed by 30-PNV(R) with Subdweller Laser Performance ------------- Evolutions (0) 0 Regions Visited (2) 400 Robots Destroyed (14) 70 Value Destroyed (184) 184 Prototype IDs (0) 0 Alien Tech Used (0) 0 Bonus (0) 0 TOTAL SCORE: 654 Bonus ------- None Cogmind --------- Core Integrity 0/250 Matter 300/300 Energy 100/100 System Corruption 0% Temperature Cool (6) Movement Walking (260) Ox2 Location -10/Subcaves Parts ------- > --- POWER (1) -------- (None) > --- PROPULSION (2) --- Aluminum Leg Aluminum Leg > --- UTILITY (2) ------ High-capacity Storage Unit Structural Scanner > --- WEAPON (2) ------- Hammer > --- INVENTORY (20) --- Light Ion Engine Aluminum Leg Aluminum Leg Improved Terrain Scanner Light Armor Plating EM Pulse Gun Grenade Launcher Peak State ------------ > --- POWER ------------ Light Ion Engine > --- PROPULSION ------- Aluminum Leg Aluminum Leg > --- UTILITY ---------- Small Storage Unit Structural Scanner > --- WEAPON ----------- EM Pulse Gun EM Pulse Gun > --- INVENTORY -------- Light Ion Engine Improved Terrain Scanner Grenade Launcher [Rating: 7] Favorites ----------- Power Light Ion Engine Engine Light Ion Engine Propulsion Aluminum Leg Leg Aluminum Leg Utility Structural Scanner Device Structural Scanner Storage High-capacity Storage Unit Protection Light Armor Plating Weapon EM Pulse Gun Energy Gun EM Pulse Gun Impact Weapon Hammer Build | -11 -10 -10 ------- Run | Yrd Mat Sub Slots Evolved . | . . . Power . | . . . Propulsion . | . . . Utility . | . . . Weapon . | . . . Parts Attached 10 | 6 4 . Power 1 | 1 . . Engine 1 | 1 . . Core . | . . . Reactor . | . . . Propulsion 2 | 2 . . Treads . | . . . Leg 2 | 2 . . Wheel . | . . . Hover . | . . . Flight . | . . . Utility 4 | 1 3 . Device 1 | . 1 . Storage 2 | 1 1 . Processor . | . . . Hackware . | . . . Protection 1 | . 1 . Artifact . | . . . Weapon 3 | 2 1 . Energy Gun 2 | 2 . . Energy Cannon . | . . . Ballistic Gun . | . . . Ballistic Cannon . | . . . Launcher . | . . . Special Weapon . | . . . Impact Weapon 1 | . 1 . Slashing Weapon . | . . . Piercing Weapon . | . . . Special Melee Weapon . | . . . Unidentified Prototypes . | . . . Parts Lost 2 | . . 2 Power 1 | . . 1 Propulsion . | . . . Utility . | . . . Weapon 1 | . . 1 Highest Loss Streak 2 | . . 2 To Critical Strikes . | . . . Average Backups 5 | 1 5 7 Power . | . 1 1 Propulsion 1 | . 1 2 Utility 1 | . 1 2 Weapon 1 | . 1 2 Tool/Special . | . . . Unused Backups 5 | . . 5 Power 1 | . . 1 Propulsion 2 | . . 2 Utility 1 | . . 1 Weapon 1 | . . 1 Tool/Special . | . . . Average Slot Usage (%) 98 | . 97 98 Engine 13 | . 14 13 Leg 28 | . 28 28 Device 13 | . 11 14 Storage 12 | . 11 14 Protection 1 | . 2 . Energy Gun 16 | . 21 13 Impact Weapon 10 | . 6 14 Peak Build Rating 7 | 6 7 7 Average Rating 6 | 5 6 6 On Entrance 4 | . 6 7 Avg Prop Armor Cover (%) . | . . . Naked Turns . | . . . Heaviest Build 48 | 12 48 48 Greatest Support 20 | 20 20 20 Greatest Overweight (x) 2 | . 2 2 Average Overweight (x) . | . . 2 Largest Inventory Capacity 20 | 8 20 20 Average Capacity 14 | 7 13 20 Most Carried 7 | 2 7 7 Average Carried 5 | 1 5 7 Final Capacity 20 | 8 20 20 Final Carried 7 | 2 7 7 Class Distribution -------------------- 100% | Mutant Dominant Class ---------------- Mutant | -10/Materials Mutant | -10/Subcaves Resources | -11 -10 -10 ----------- Run | Yrd Mat Sub Matter Collected 300 | 260 30 10 Remotely . | . . . Salvage Created 389 | 280 50 59 Parts 21 | 17 1 3 Haulers Intercepted . | . . . Recyclers Shooed . | . . . Parts Field Recycled . | . . . Retrieved Matter . | . . . Parts Self-Destructed . | . . . Prevented . | . . . Parts Restored . | . . . Kills | -11 -10 -10 ------- Run | Yrd Mat Sub Combat Hostiles Destroyed 3 | . 1 2 Melee 2 | . . 2 Guns 1 | . 1 . Classes Destroyed 5 | 3 1 1 Worker 1 | 1 . . Tunneler 9 | 9 . . Recycler 1 | 1 . . Grunt 1 | . 1 . Subdweller 2 | . . 2 Best Kill Streak 5 | 5 1 1 Combat Bots Only 1 | . 1 1 Max Kills in Single Turn 2 | 2 1 1 Gunslinging . | . . . Exploded . | . . . Melee 1 | . . 1 Uniques/NPCs Destroyed . | . . . Combat | -11 -10 -10 -------- Run | Yrd Mat Sub Hostile Shots Fired 36 | . 2 34 Missed 14 | . . 14 Hits 22 | . 2 20 Projectile 22 | . 2 20 AOE 4 | . . 4 Damage Taken 530 | . 23 507 Core 260 | . . 260 Absorbed by Shields . | . . . Core Remaining (%) 100 | 100 . . Volleys Fired 27 | 22 3 2 Largest 2 | 2 2 1 Hottest 80 | 80 80 40 Shots Fired 52 | 44 6 2 Gun 52 | 44 6 2 Cannon . | . . . Launcher . | . . . Special . | . . . Kinetic . | . . . Thermal . | . . . Explosive . | . . . Electromagnetic 52 | 44 6 2 Robot Hit Streak 5 | 5 1 3 Robot Miss Streak 3 | 3 2 . Penetration Max . | . . . Secondary Targets . | . . . Shots Hit Robots 39 | 25 2 12 Core Hits 17 | 11 3 3 Critical Kills 1 | . . 1 Critical Parts Destroyed . | . . . Critical Strikes 1 | . . 1 Smash 1 | . . 1 Melee Attacks 26 | . 9 17 Impact 26 | . 9 17 Slashing . | . . . Piercing . | . . . Sneak Attacks . | . . . Combat Hostiles . | . . . Follow-up Attacks . | . . . Damage Inflicted 820 | 596 38 186 Guns 425 | 366 38 21 Cannons . | . . . Explosions 230 | 230 . . Melee 165 | . . 165 Ramming . | . . . Kinetic . | . . . Thermal 230 | 230 . . Explosive . | . . . Electromagnetic 425 | 366 38 21 Impact 165 | . . 165 Slashing . | . . . Piercing . | . . . Highest Corruption . | . . . Average Corruption . | . . . Corruption Purged . | . . . Corruption Blocked . | . . . Overload Shots . | . . . Overflow Damage 42 | 42 . . Projectiles . | . . . Explosions 42 | 42 . . Melee . | . . . Knockbacks 1 | . . 1 Impact 1 | . . 1 Kinetic . | . . . Secondary . | . . . Self-Inflicted Damage . | . . . Shots . | . . . Rammed . | . . . Targets Rammed . | . . . Kicked . | . . . Crushed . | . . . Highest Temperature 108 | 108 60 . Average Temperature 38 | 39 35 . Received Heat Transfer 120 | . 12 108 Siege Activations . | . . . Martial Activations . | . . . Shielding Activations . | . . . Robots Disrupted . | . . . Combat Hostiles . | . . . Robots Corrupted . | . . . Combat Hostiles . | . . . Parts Fried 2 | 2 . . Impact Corruptions . | . . . Robots Melted . | . . . Combat Hostiles . | . . . Parts Melted . | . . . Heat Transferred 300 | 300 . . Parts Sabotaged . | . . . Parts Stolen . | . . . Parts Stripped . | . . . Power Chain Reactions 4 | 4 . . Alert | -11 -10 -10 ------- Run | Yrd Mat Sub Maximum Alert Level . | . . . Low Security (%) 100 | 100 100 . Level 1 . | . . . Level 2 . | . . . Level 3 . | . . . Level 4 . | . . . Level 5 . | . . . High Security . | . . . Max Security . | . . . Peak Influence 20 | 20 20 . Initial 3 | . 3 . Average 2 | 3 2 . Influence Increases 78 | 55 23 . Destroy 0b10 Robot/C 20 | . 20 . Destroy 0b10 Robot/NC 55 | 55 . . Destroy Structure 3 | . 3 . Influence Decreases 78 | 50 28 . Entered New Map 2 | . 2 . Time Decay 76 | 50 26 . Squads Dispatched . | . . . Investigation . | . . . Extermination . | . . . Reinforcement . | . . . Assault . | . . . Garrison . | . . . Intercept . | . . . Searches Triggered . | . . . Construction Impeded . | . . . Haulers Reinforced . | . . . Active Scanning Responses . | . . . Cargo Convoy Interrupts . | . . . Stealth | -11 -10 -10 --------- Run | Yrd Mat Sub Distress Signals . | . . . Communications Jammed . | . . . Distress Signals . | . . . Times Spotted 7 | . 3 4 Peak Tracking Total 3 | . 3 2 Tactical Retreats . | . . . Traps | -11 -10 -10 ------- Run | Yrd Mat Sub Traps Triggered . | . . . Indirectly . | . . . Trap Hack Attempts . | . . . Triggered . | . . . Disarmed . | . . . Reprogrammed . | . . . Reused . | . . . Traps Extracted . | . . . Installed . | . . . Triggered . | . . . Machines | -11 -10 -10 ---------- Run | Yrd Mat Sub Machines Disabled 1 | . 1 . Max in Single Turn 1 | . 1 . Machines Repaired . | . . . Machines Dismantled . | . . . Machines Sabotaged . | . . . Overloaded Fab Kills . | . . . Hacking | -11 -10 -10 --------- Run | Yrd Mat Sub Machines Accessed 1 | . 1 . Terminals 1 | . 1 . Fabricators . | . . . Repair Stations . | . . . Recycling Units . | . . . Scanalyzers . | . . . Garrison Access . | . . . Total Hacks 1 | . 1 . Successful 1 | . 1 . Failed . | . . . Catastrophic . | . . . Database Lockouts . | . . . Manual 1 | . 1 . Terminals 1 | . 1 . Fabricators . | . . . Repair Stations . | . . . Recycling Units . | . . . Scanalyzers . | . . . Garrison Access . | . . . Terminal Hacks . | . . . Fabricator Hacks . | . . . Repair Station Hacks . | . . . Recycling Unit Hacks . | . . . Scanalyzer . | . . . Garrison Access Hacks . | . . . Unauthorized Hacks 1 | . 1 . Terminals 1 | . 1 . Botnet 1 | . 1 . Fabricators . | . . . Repair Stations . | . . . Recycling Units . | . . . Scanalyzers . | . . . Garrison Access . | . . . Data Cores Recovered . | . . . Used . | . . . Hacking Detections 1 | . 1 . Full Trace Events . | . . . Feedback Events . | . . . Feedback Blocked . | . . . Robot Schematics Acquired . | . . . Robots Built . | . . . Authchips . | . . . Time . | . . . Total Robot Build Rating . | . . . Part Schematics Acquired . | . . . Parts Built . | . . . Authchips . | . . . Time . | . . . Total Part Build Rating . | . . . Part Studies Acquired . | . . . Parts Repaired . | . . . Time . | . . . Parts Recycled . | . . . Recycled Matter . | . . . Retrieved Matter . | . . . Retrieved Components . | . . . Parts Scanalyzed . | . . . Part Schematics Acquired . | . . . Parts Damaged . | . . . Bothacking | -11 -10 -10 ------------ Run | Yrd Mat Sub Used RIF Installer . | . . . Robots Hacked . | . . . Non-combat . | . . . Combat . | . . . Robot Hacks Applied . | . . . Relay Couplers Released . | . . . Fabnet Peak Effective % . | . . . Robots Rewired . | . . . Allies Hacked . | . . . Hacks Repelled . | . . . Allies | -11 -10 -10 -------- Run | Yrd Mat Sub Total Allies . | . . . Largest Group . | . . . Highest-Rated Group . | . . . Highest-Rated Ally . | . . . Total Orders . | . . . Ally Attacks . | . . . Total Damage . | . . . Kills . | . . . Allies Corrupted . | . . . Allies Melted . | . . . Intel | -11 -10 -10 ------- Run | Yrd Mat Sub Active Infowar (turns) 666 | . 240 426 Structural 666 | . 240 426 Robot Analysis Total . | . . . Derelict Logs Recovered . | . . . Drone Launches . | . . . Drone Recoveries . | . . . Exploration | -11 -10 -10 ------------- Run | Yrd Mat Sub Turns Passed 959 | 252 281 426 Spaces Moved 429 | 153 135 141 Core 12 | 12 . . Treads . | . . . Legs 417 | 141 135 141 Wheels . | . . . Hover . | . . . Flight . | . . . Fastest Speed 50 | 50 120 260 Average Speed 177 | 114 162 260 Slowest Speed 260 | 120 260 260 Overloaded Moves . | . . . Propulsion Burnouts . | . . . Robots Hopped . | . . . Potential Cave-ins . | . . . Cave-ins Triggered . | . . . Exploration Rate (%) 12 | 4 27 7 Regions Visited 2 Branch Regions 1 Pre-discovered Areas . | . . . Known Exits Taken . | . . . Unknown Exits Taken 2 | 1 1 . Scrap Searched 1 | . . 1 Spaces Dug 4 | . 3 1 Terrain Destroyed 15 | 11 3 1 Melee 4 | . 3 1 Projectile . | . . . AOE 11 | 11 . . Terrain Rammed . | . . . Walls Destroyed . | . . . Machines Disabled . | . . . Actions | -11 -10 -10 --------- Run | Yrd Mat Sub Total 526 | 182 176 168 Wait 27 | . 19 8 Move 427 | 152 134 141 Hop . | . . . Pick Up 7 | 2 5 . Fast Attach 8 | 6 2 . Attach . | . . . Detach 1 | . 1 . Swap 2 | . 2 . Drop 1 | . 1 . Fire 27 | 22 3 2 Melee 26 | . 9 17 Ram . | . . . Kick . | . . . Crush . | . . . Escape Stasis . | . . . Rewire . | . . . Trap . | . . . Miscellaneous . | . . . Route ------- -11/Scrapyard -10/Materials (discovered 2 exits: [*Min] / [*Sub]) -10/Subcaves History --------- Turn | Location | Event 4 | -11/Scrapyard | Discovered new exit (range 15) 253 | -11/Scrapyard | Entered Materials 315 | -10/Materials | Build established: Mutant 441 | -10/Materials | Discovered new exit (range 13) 491 | -10/Materials | Discovered new exit (range 6) 534 | -10/Materials | Entered Subcaves 950 | -10/Subcaves | Core integrity fell below 50% 956 | -10/Subcaves | Core integrity fell below 20% 960 | -10/Subcaves | Destroyed by 30-PNV(R) with Subdweller Laser Last Messages --------------- GOAL=ESCAPE 00580_ RA-Q34(R) angrily emerges from the Twisted Machinery. 00581_ RA-Q34(R): "SUB#$%&!" 00614_ RA-Q34(R) suffers critical hit (Smash). 00614_ RA-Q34(R) destroyed. 00625_ Acquired 10 matter. 00627_ Subatomizers dissect the Corrupted Sub. Laser. 00635_ Searching scrap... 00635_ Found Mak. Flight Unit. 00635_ Found Spk. Treads. 00635_ Found 45 Matter. 00648_ Subatomizers dissect the Corrupted Sub. Laser. 00918_ IP-PBX(R) destroyed. 00943_ EM Pulse Gun destroyed. 00947_ YM-KX6(R) knocked back. 00947_ Lgt. Ion Engine destroyed. 00955_ FK-NAZ(O) collects matter. Map ----- +----------------------------------------------------+ | ????????##==### ################??????????????? | | ????????##"%## ## ### ## ####?????????????? | | ????????######### ###?????????????? | | ????????########### ##?????????????? | | ???????????????#### ##### ###?????????????? | | ????????????????## ####### ###??????????????? | | ????????????????## #### ####??????????????? | | ????????????????### ####???????????????? | | ???????????????##### ###????????????????? | | ???????????????##### ## ##????????????????? | | ???????????????## #### ##????????????????? | | ???????????????### ###; ##????????????????? | | ???????????????#### ;; ; ####??????????????? | | ???????????????#### ## ";; #######????????????? | | ????????????###### ###" ####????????????? | | ????????????##### ### ##????????????? | | ????????????## ### ##????????????? | | ???????????### ### ##### ##????????????? | | ???????????####### ##### ##????????????? | | ???????????## ###" ###### ##????????????? | | ???????????## ""####; ; ##????????????? | | ???????????### #" ### O ##????????????? | | ???????????############ ###????????????? | | ????????????########## #####????????????? | | ??????????????????##### ;;; " ####?????????????? | | ??????????????????#### @# # ######?????????????? | | ?????????????????"""" " ###????????????? | | ?????????????????""" " R R"" ##????????????? | | ????????????????"""## " # "# ##????????????? | | ????????????????##"## #####" ###????????????? | | ????????????????#### ### " ###????????????? | | ???????????????### #?????" ##????????????? | | ??????????????### ##?????"###????????????? | | ??????????????## ##?????"###????????????? | | ??????????????# ?????????????????????? | | ??????????????? ??????????????????????? | | ???????????????? ## #?????????????????????? | | ???????????????? ## ##?????????????????????? | | ?????????????????? ## ##?????????????????????? | | ????????????????????? ##??????????????????????? | | ??????????????????????? ##??????????????????????? | | ?????????????????????????????????????????????????? | | ?????????????????????????????????????????????????? | | ?????????????????????????????????????????????????? | | ?????????????????????????????????????????????????? | | ?????????????????????????????????????????????????? | | ?????????????????????????????????????????????????? | | ?????????????????????????????????????????????????? | | ?????????????????????????????????????????????????? | | ?????????????????????????????????????????????????? | +----------------------------------------------------+ Best States ------------- Heat Dissipation 25 Energy Generation 10 Energy Capacity 125 Matter Stores 300 Matter Capacity 300 Sight Range 16 Terrain Scan Density 10 Armor Coverage 150 Evasion (%) 55 Item Schematics ----------------- None Robot Schematics ------------------ None Fabricated ------------ Nothing Repaired ---------- Nothing Studied --------- None Alien Tech Used ----------------- None Achievements -------------- None Challenges ------------ None Game ------ Seed PlatingAluminumSaw Manual? 0 Play Time 00:06:06 Cumulative 202.0 hours Start 2026.09.08 @ 21:16:30 End 2026.09.08 @ 21:21:23 Sessions 1 Manual Loads 0 Difficulty Rogue Special Mode None Game No. 394 Rogue 394 Adventurer 0 Explorer 0 Win Type - Total 2 Types 2/0/0/0/0/0/0/0/0/0 Lore% 60 Gallery% 62 Achievement% 48 Wizard Run 0 Options --------- Layout 2 ASCII 0 Keyboard 1 Movement Arrows Keybinds 0 Fullscreen 1 Font 24/Smallcaps Map View 50x44 Zoom Use 0% Tactical HUD 1 Map Filters NONE Filters NONE Steam 1 RUN: 76a9ae6c-7101-486c-8b55-be1b9dd5f81b